[Event "*** Titled Tuesday Blitz"]
[Site "Chess.com"]
[Date "2020.04.14"]
[Round "2"]
[White "Tashik"]
[Black "Sanan_Sjugirov"]
[Result "0-1"]
[WhiteElo "2567"]
[BlackElo "2827"]
[TimeControl "180+1"]
[EndTime "10:16:56 PDT"]
[Termination "Sanan_Sjugirov won by resignation"]

1. c4 {[%clk 0:03:00.9]} 1... e6 {[%clk 0:02:59.3]} 2. Nc3 {[%clk 0:03:00.8]}
2... d5 {[%clk 0:02:59.4]} 3. d4 {[%clk 0:03:00.9]} 3... a6 {[%clk 0:02:59.5]}
4. cxd5 {[%clk 0:02:59.2]} 4... exd5 {[%clk 0:03:00.4]} 5. Nf3 {[%clk 0:02:54]}
5... c6 {[%clk 0:02:58.9]} 6. Bf4 {[%clk 0:02:50]} 6... Nf6 {[%clk 0:02:56.9]}
7. e3 {[%clk 0:02:49.5]} 7... Bd6 {[%clk 0:02:47.2]} 8. Bxd6 {[%clk 0:02:45.1]}
8... Qxd6 {[%clk 0:02:48.1]} 9. Bd3 {[%clk 0:02:45.4]} 9... Bg4 {[%clk
0:02:42.4]} 10. Qb3 {[%clk 0:02:37.4]} 10... b5 {[%clk 0:02:07.3]} 11. Ne5
{[%clk 0:02:35.4]} 11... Nbd7 {[%clk 0:02:03.6]} 12. Nxg4 {[%clk 0:02:01.1]}
12... Nxg4 {[%clk 0:02:04.5]} 13. h3 {[%clk 0:02:01.6]} 13... Ngf6 {[%clk
0:02:03.4]} 14. O-O {[%clk 0:02:00.7]} 14... O-O {[%clk 0:01:59]} 15. Rac1
{[%clk 0:02:00.2]} 15... c5 {[%clk 0:01:55.5]} 16. dxc5 {[%clk 0:01:56.3]} 16...
Nxc5 {[%clk 0:01:56.4]} 17. Qd1 {[%clk 0:01:56.7]} 17... Rfd8 {[%clk 0:01:47.5]}
18. Ne2 {[%clk 0:01:49.4]} 18... g6 {[%clk 0:01:42.7]} 19. Nd4 {[%clk
0:01:49.3]} 19... Rac8 {[%clk 0:01:39.5]} 20. Qe2 {[%clk 0:01:45.9]} 20... Ne6
{[%clk 0:01:38.1]} 21. Nxe6 {[%clk 0:01:28.2]} 21... Qxe6 {[%clk 0:01:39]} 22.
Rc2 {[%clk 0:01:08.6]} 22... Rxc2 {[%clk 0:01:34]} 23. Qxc2 {[%clk 0:01:06.3]}
23... d4 {[%clk 0:01:28.1]} 24. exd4 {[%clk 0:00:54.7]} 24... Qxa2 {[%clk
0:01:16.1]} 25. Qc3 {[%clk 0:00:20.6]} 25... Qd5 {[%clk 0:01:10.8]} 26. Ra1
{[%clk 0:00:18.2]} 26... Qxd4 {[%clk 0:01:02.8]} 27. Qxd4 {[%clk 0:00:15.2]}
27... Rxd4 {[%clk 0:01:03.7]} 28. Rxa6 {[%clk 0:00:15.3]} 28... Rxd3 {[%clk
0:01:02.8]} 29. Rxf6 {[%clk 0:00:15.8]} 29... Rb3 {[%clk 0:01:00.9]} 30. Rb6
{[%clk 0:00:14.5]} 30... Rxb2 {[%clk 0:01:00.4]} 31. h4 {[%clk 0:00:14.2]} 31...
h5 {[%clk 0:00:54.6]} 32. g3 {[%clk 0:00:14.3]} 32... Kf8 {[%clk 0:00:51.8]} 33.
Rb7 {[%clk 0:00:13.4]} 33... Kg7 {[%clk 0:00:51.7]} 34. Kg2 {[%clk 0:00:13.6]}
34... Kf6 {[%clk 0:00:51.3]} 35. Kf3 {[%clk 0:00:10.5]} 35... Ke6 {[%clk
0:00:49.6]} 36. g4 {[%clk 0:00:08.9]} 36... Rb3+ {[%clk 0:00:48.3]} 37. Kg2
{[%clk 0:00:06.9]} 37... hxg4 {[%clk 0:00:48]} 0-1

[Event "*** Titled Tuesday Blitz"]
[Site "Chess.com"]
[Date "2020.04.14"]
[Round "2"]
[White "dukicz123"]
[Black "want2lose"]
[Result "1-0"]
[WhiteElo "2564"]
[BlackElo "2763"]
[TimeControl "180+1"]
[EndTime "10:16:56 PDT"]
[Termination "dukicz123 won by checkmate"]

1. e4 {[%clk 0:03:00.9]} 1... e6 {[%clk 0:02:59.7]} 2. d4 {[%clk 0:03:00.3]}
2... d5 {[%clk 0:03:00.6]} 3. Nc3 {[%clk 0:03:00.4]} 3... Nf6 {[%clk 0:03:00.6]}
4. e5 {[%clk 0:03:00.7]} 4... Nfd7 {[%clk 0:03:01.1]} 5. f4 {[%clk 0:03:01.2]}
5... c5 {[%clk 0:03:01.7]} 6. Nf3 {[%clk 0:03:01.5]} 6... Nc6 {[%clk 0:03:02.3]}
7. Be3 {[%clk 0:03:01.7]} 7... cxd4 {[%clk 0:03:02.9]} 8. Nxd4 {[%clk
0:03:02.6]} 8... Qb6 {[%clk 0:03:03.5]} 9. Qd2 {[%clk 0:03:01.8]} 9... Qxb2
{[%clk 0:03:03.9]} 10. Rb1 {[%clk 0:03:01.2]} 10... Qa3 {[%clk 0:03:04.4]} 11.
Bb5 {[%clk 0:03:01.8]} 11... Nxd4 {[%clk 0:03:04.6]} 12. Bxd4 {[%clk 0:03:01.9]}
12... a6 {[%clk 0:03:05.1]} 13. Bxd7+ {[%clk 0:02:56.4]} 13... Bxd7 {[%clk
0:03:06]} 14. Rxb7 {[%clk 0:02:19.1]} 14... Qe7 {[%clk 0:03:05.6]} 15. O-O
{[%clk 0:02:13.7]} 15... Qd8 {[%clk 0:02:50]} 16. Rfb1 {[%clk 0:02:12.4]} 16...
Qc8 {[%clk 0:02:39.3]} 17. Qe3 {[%clk 0:01:51.2]} 17... Bc6 {[%clk 0:01:46]} 18.
R7b6 {[%clk 0:01:33.3]} 18... Be7 {[%clk 0:01:39.9]} 19. Bc5 {[%clk 0:01:29.4]}
19... Bd8 {[%clk 0:01:05.6]} 20. R6b2 {[%clk 0:01:19.4]} 20... f5 {[%clk
0:01:02.7]} 21. Bd6 {[%clk 0:00:48.7]} 21... Kf7 {[%clk 0:00:54]} 22. Ne2 {[%clk
0:00:43.6]} 22... Qd7 {[%clk 0:00:47]} 23. Nd4 {[%clk 0:00:42]} 23... Be7 {[%clk
0:00:26.5]} 24. Bxe7 {[%clk 0:00:26.4]} 24... Kxe7 {[%clk 0:00:20.4]} 25. Nxc6+
{[%clk 0:00:26.5]} 25... Qxc6 {[%clk 0:00:20.6]} 26. Rb7+ {[%clk 0:00:27]} 26...
Kd8 {[%clk 0:00:20.1]} 27. Rb8+ {[%clk 0:00:25.1]} 27... Kc7 {[%clk 0:00:20]}
28. Rxh8 {[%clk 0:00:22.9]} 28... Qxc2 {[%clk 0:00:08.9]} 29. Qb6+ {[%clk
0:00:21.6]} 29... Kd7 {[%clk 0:00:08.9]} 30. Qd6# {[%clk 0:00:22.1]} 1-0

[Event "*** Titled Tuesday Blitz"]
[Site "Chess.com"]
[Date "2020.04.14"]
[Round "2"]
[White "PotapovaM"]
[Black "KoustavChatterjee1"]
[Result "0-1"]
[WhiteElo "2518"]
[BlackElo "2726"]
[TimeControl "180+1"]
[EndTime "10:16:56 PDT"]
[Termination "KoustavChatterjee1 won on time"]

1. d4 {[%clk 0:03:00.9]} 1... Nf6 {[%clk 0:02:59.6]} 2. c4 {[%clk 0:03:01.4]}
2... e6 {[%clk 0:02:59.8]} 3. Nf3 {[%clk 0:03:01.4]} 3... d5 {[%clk 0:02:59]} 4.
g3 {[%clk 0:03:01.1]} 4... Bb4+ {[%clk 0:02:58.7]} 5. Bd2 {[%clk 0:03:00.5]}
5... Be7 {[%clk 0:02:59]} 6. Bg2 {[%clk 0:03:00.7]} 6... O-O {[%clk 0:02:59.6]}
7. O-O {[%clk 0:02:59.3]} 7... Nbd7 {[%clk 0:03:00]} 8. Qc2 {[%clk 0:02:56.8]}
8... Ne4 {[%clk 0:03:00.1]} 9. Bf4 {[%clk 0:02:45.4]} 9... c6 {[%clk 0:02:59]}
10. Rc1 {[%clk 0:02:40.6]} 10... g5 {[%clk 0:02:55.5]} 11. Be3 {[%clk
0:02:26.2]} 11... Nd6 {[%clk 0:02:54.3]} 12. cxd5 {[%clk 0:02:18.8]} 12... exd5
{[%clk 0:02:51.5]} 13. Nc3 {[%clk 0:01:55.5]} 13... Nb6 {[%clk 0:02:46.1]} 14.
b3 {[%clk 0:01:46.3]} 14... Bf5 {[%clk 0:02:41.3]} 15. Qd1 {[%clk 0:01:46.3]}
15... Re8 {[%clk 0:02:35.4]} 16. Ne5 {[%clk 0:01:43.8]} 16... f6 {[%clk
0:02:33.7]} 17. Nd3 {[%clk 0:01:42.6]} 17... Nd7 {[%clk 0:02:31.5]} 18. f3
{[%clk 0:01:39.1]} 18... Bf8 {[%clk 0:02:31]} 19. Bf2 {[%clk 0:01:39.3]} 19...
Bg6 {[%clk 0:02:25.4]} 20. Qd2 {[%clk 0:01:39.4]} 20... Bg7 {[%clk 0:02:20.6]}
21. Re1 {[%clk 0:01:34.4]} 21... f5 {[%clk 0:02:20.5]} 22. Rac1 {[%clk
0:01:32.2]} 22... a5 {[%clk 0:02:18.4]} 23. Na4 {[%clk 0:01:30.7]} 23... Rc8
{[%clk 0:02:14]} 24. Nac5 {[%clk 0:01:23.2]} 24... Nxc5 {[%clk 0:02:00.2]} 25.
Nxc5 {[%clk 0:01:24.1]} 25... h6 {[%clk 0:01:58.9]} 26. a4 {[%clk 0:01:17.7]}
26... Re7 {[%clk 0:01:43]} 27. e3 {[%clk 0:01:11.1]} 27... Qf8 {[%clk 0:01:39]}
28. Qxa5 {[%clk 0:01:08.5]} 28... f4 {[%clk 0:01:38.9]} 29. exf4 {[%clk
0:01:01.6]} 29... gxf4 {[%clk 0:01:39.8]} 30. Rxe7 {[%clk 0:00:59.3]} 30... Qxe7
{[%clk 0:01:40.7]} 31. Re1 {[%clk 0:00:59.3]} 31... Qf7 {[%clk 0:01:38.9]} 32.
g4 {[%clk 0:00:58.9]} 32... Re8 {[%clk 0:01:37]} 33. Qd2 {[%clk 0:00:39.8]}
33... Rxe1+ {[%clk 0:01:28.1]} 34. Qxe1 {[%clk 0:00:38.1]} 34... b6 {[%clk
0:01:26]} 35. Ne6 {[%clk 0:00:30.5]} 35... Bh8 {[%clk 0:01:26]} 36. Bh3 {[%clk
0:00:25.1]} 36... Bc2 {[%clk 0:01:25.6]} 37. Qc3 {[%clk 0:00:18.5]} 37... Bxb3
{[%clk 0:01:19.3]} 38. Qxb3 {[%clk 0:00:17.4]} 38... Qxe6 {[%clk 0:01:19.3]} 39.
Qxb6 {[%clk 0:00:17.5]} 39... Nc4 {[%clk 0:01:18.9]} 40. Qd8+ {[%clk 0:00:16.8]}
40... Kh7 {[%clk 0:01:18.8]} 41. g5 {[%clk 0:00:14.2]} 41... Qxh3 {[%clk
0:01:17.4]} 42. Qe7+ {[%clk 0:00:10.3]} 42... Bg7 {[%clk 0:01:17.2]} 43. gxh6
{[%clk 0:00:01.6]} 43... Qxh6 {[%clk 0:01:16.7]} 44. a5 {[%clk 0:00:01.8]} 44...
Nxa5 {[%clk 0:01:15.6]} 0-1

[Event "*** Titled Tuesday Blitz"]
[Site "Chess.com"]
[Date "2020.04.14"]
[Round "2"]
[White "aleksa74"]
[Black "Donseng"]
[Result "1-0"]
[WhiteElo "2736"]
[BlackElo "2518"]
[TimeControl "180+1"]
[EndTime "10:16:57 PDT"]
[Termination "aleksa74 won on time"]

1. e4 {[%clk 0:02:28.7]} 1... e6 {[%clk 0:02:54.8]} 2. d4 {[%clk 0:02:28]} 2...
d5 {[%clk 0:02:55.1]} 3. Nd2 {[%clk 0:02:28.7]} 3... Nc6 {[%clk 0:02:54.2]} 4.
Ngf3 {[%clk 0:02:27.8]} 4... Nf6 {[%clk 0:02:53.6]} 5. e5 {[%clk 0:02:27.7]}
5... Nd7 {[%clk 0:02:52.4]} 6. Be2 {[%clk 0:02:28]} 6... f6 {[%clk 0:02:51.8]}
7. exf6 {[%clk 0:02:27.9]} 7... Qxf6 {[%clk 0:02:52.1]} 8. Nf1 {[%clk
0:02:27.7]} 8... Bd6 {[%clk 0:02:50.1]} 9. Ne3 {[%clk 0:02:27.5]} 9... O-O
{[%clk 0:02:32.1]} 10. O-O {[%clk 0:02:27.2]} 10... Ne7 {[%clk 0:02:17.3]} 11.
Bd3 {[%clk 0:02:21.3]} 11... h6 {[%clk 0:01:34.8]} 12. c4 {[%clk 0:02:06.3]}
12... c6 {[%clk 0:01:27.7]} 13. Qe2 {[%clk 0:02:03.7]} 13... Ng6 {[%clk
0:01:17.9]} 14. Ng4 {[%clk 0:01:44.2]} 14... Qf7 {[%clk 0:01:14]} 15. h3 {[%clk
0:01:40]} 15... Nf4 {[%clk 0:01:10.9]} 16. Bxf4 {[%clk 0:01:39.3]} 16... Bxf4
{[%clk 0:01:11.8]} 17. Rfe1 {[%clk 0:01:38.4]} 17... h5 {[%clk 0:00:58.4]} 18.
Nge5 {[%clk 0:01:27.7]} 18... Nxe5 {[%clk 0:00:57.7]} 19. Nxe5 {[%clk
0:01:22.1]} 19... Bxe5 {[%clk 0:00:56.9]} 20. Qxe5 {[%clk 0:01:18.7]} 20...
Qxf2+ {[%clk 0:00:56]} 21. Kh1 {[%clk 0:01:19.2]} 21... Qh4 {[%clk 0:00:22.9]}
22. Qd6 {[%clk 0:01:12.8]} 22... Qxd4 {[%clk 0:00:16]} 23. Rad1 {[%clk
0:00:55.1]} 23... Qf4 {[%clk 0:00:07.6]} 24. Re5 {[%clk 0:00:32.4]} 24... Qf6
{[%clk 0:00:01.5]} 25. Rf1 {[%clk 0:00:25.2]} 1-0

[Event "*** Titled Tuesday Blitz"]
[Site "Chess.com"]
[Date "2020.04.14"]
[Round "2"]
[White "Keaton87"]
[Black "RaphCamora"]
[Result "0-1"]
[WhiteElo "2668"]
[BlackElo "2425"]
[TimeControl "180+1"]
[EndTime "10:16:57 PDT"]
[Termination "RaphCamora won on time"]

1. d4 {[%clk 0:03:00.9]} 1... d5 {[%clk 0:02:59.7]} 2. c4 {[%clk 0:03:00.1]}
2... e6 {[%clk 0:03:00]} 3. Nc3 {[%clk 0:02:59.2]} 3... c6 {[%clk 0:03:00.6]} 4.
Nf3 {[%clk 0:02:51.9]} 4... dxc4 {[%clk 0:03:00.3]} 5. e3 {[%clk 0:02:43.1]}
5... b5 {[%clk 0:02:59.3]} 6. a4 {[%clk 0:02:43.8]} 6... Bb4 {[%clk 0:02:59.3]}
7. Bd2 {[%clk 0:02:42.9]} 7... a5 {[%clk 0:02:59.9]} 8. axb5 {[%clk 0:02:41.4]}
8... Bxc3 {[%clk 0:03:00.5]} 9. Bxc3 {[%clk 0:02:35.5]} 9... cxb5 {[%clk
0:03:00.3]} 10. b3 {[%clk 0:02:31.8]} 10... Bb7 {[%clk 0:03:00.4]} 11. bxc4
{[%clk 0:02:31.9]} 11... b4 {[%clk 0:03:00.7]} 12. Bb2 {[%clk 0:02:29.9]} 12...
Nf6 {[%clk 0:03:01.1]} 13. Bd3 {[%clk 0:02:27]} 13... O-O {[%clk 0:03:01]} 14.
O-O {[%clk 0:02:27.1]} 14... Qd6 {[%clk 0:01:59.3]} 15. c5 {[%clk 0:02:24.6]}
15... Qd5 {[%clk 0:01:53.4]} 16. Re1 {[%clk 0:02:02.7]} 16... Ne4 {[%clk
0:01:44.8]} 17. Qc2 {[%clk 0:01:57]} 17... Nd7 {[%clk 0:01:29.9]} 18. Bc4 {[%clk
0:01:52.4]} 18... Qc6 {[%clk 0:01:29.7]} 19. Qd3 {[%clk 0:01:44.1]} 19... Ng5
{[%clk 0:01:06.6]} 20. e4 {[%clk 0:01:32.3]} 20... Nxe4 {[%clk 0:01:05.9]} 21.
Bb5 {[%clk 0:01:16.5]} 21... Qd5 {[%clk 0:01:06]} 22. Bxd7 {[%clk 0:01:12.2]}
22... Qxd7 {[%clk 0:01:06.9]} 23. Rxe4 {[%clk 0:01:12.2]} 23... Bxe4 {[%clk
0:01:06.2]} 24. Qxe4 {[%clk 0:01:13.1]} 24... f6 {[%clk 0:01:05.3]} 25. c6
{[%clk 0:00:49]} 25... Qd5 {[%clk 0:01:05]} 26. Qc2 {[%clk 0:00:41.5]} 26...
Rfc8 {[%clk 0:01:03.8]} 27. Rc1 {[%clk 0:00:32.2]} 27... a4 {[%clk 0:00:50.3]}
28. Ba1 {[%clk 0:00:18.9]} 28... b3 {[%clk 0:00:49.5]} 29. Qe2 {[%clk
0:00:11.3]} 29... a3 {[%clk 0:00:47.6]} 30. Rc5 {[%clk 0:00:11.3]} 30... Qd6
{[%clk 0:00:46.5]} 31. h3 {[%clk 0:00:04]} 31... Rxc6 {[%clk 0:00:42.1]} 32. Qc4
{[%clk 0:00:01.2]} 32... b2 {[%clk 0:00:32.3]} 0-1

[Event "*** Titled Tuesday Blitz"]
[Site "Chess.com"]
[Date "2020.04.14"]
[Round "2"]
[White "AshotParvanyan"]
[Black "Maghalashvili"]
[Result "0-1"]
[WhiteElo "2586"]
[BlackElo "2877"]
[TimeControl "180+1"]
[EndTime "10:16:59 PDT"]
[Termination "Maghalashvili won on time"]

1. Nf3 {[%clk 0:03:00.9]} 1... c5 {[%clk 0:03:00.2]} 2. c4 {[%clk 0:03:00.3]}
2... g6 {[%clk 0:03:00.4]} 3. e4 {[%clk 0:02:57.6]} 3... Bg7 {[%clk 0:02:59.7]}
4. d4 {[%clk 0:02:57.7]} 4... cxd4 {[%clk 0:03:00.1]} 5. Nxd4 {[%clk 0:02:57.7]}
5... Nc6 {[%clk 0:03:00.8]} 6. Nc2 {[%clk 0:02:54.3]} 6... Nf6 {[%clk
0:03:00.9]} 7. Nc3 {[%clk 0:02:53.3]} 7... O-O {[%clk 0:03:00.9]} 8. Be2 {[%clk
0:02:53.3]} 8... d6 {[%clk 0:03:00.9]} 9. O-O {[%clk 0:02:52.9]} 9... Be6 {[%clk
0:02:59]} 10. Bd2 {[%clk 0:02:41.2]} 10... Rc8 {[%clk 0:02:55.5]} 11. b3 {[%clk
0:02:31.2]} 11... Nd7 {[%clk 0:02:50.6]} 12. Rc1 {[%clk 0:02:28.3]} 12... Nc5
{[%clk 0:02:47.3]} 13. Re1 {[%clk 0:02:17.8]} 13... a5 {[%clk 0:02:41.3]} 14.
Bf1 {[%clk 0:02:16.2]} 14... f5 {[%clk 0:02:30]} 15. exf5 {[%clk 0:02:10.1]}
15... Bxf5 {[%clk 0:02:30]} 16. Ne3 {[%clk 0:02:08.1]} 16... Bd3 {[%clk
0:02:27.1]} 17. Ned5 {[%clk 0:01:35.5]} 17... Bxf1 {[%clk 0:02:22.6]} 18. Rxf1
{[%clk 0:01:34.5]} 18... e6 {[%clk 0:02:22.7]} 19. Nf4 {[%clk 0:01:04.5]} 19...
Qh4 {[%clk 0:02:05.7]} 20. Be3 {[%clk 0:00:44.5]} 20... Rxf4 {[%clk 0:02:01.1]}
21. g3 {[%clk 0:00:43.9]} 21... Rg4 {[%clk 0:01:59.7]} 22. Qxd6 {[%clk
0:00:25.5]} 22... Bf8 {[%clk 0:01:51.5]} 23. Qd2 {[%clk 0:00:18.7]} 23... Qh5
{[%clk 0:01:45.5]} 24. Nb5 {[%clk 0:00:15.8]} 24... Rd8 {[%clk 0:01:36.4]} 25.
Qc2 {[%clk 0:00:15.7]} 25... Nb4 {[%clk 0:01:30.3]} 26. Qb1 {[%clk 0:00:12.2]}
26... Qf5 {[%clk 0:01:28.7]} 27. h3 {[%clk 0:00:04.6]} 27... Qxb1 {[%clk
0:01:20.8]} 28. Rxb1 {[%clk 0:00:05.5]} 28... Re4 {[%clk 0:01:20.8]} 29. Rfd1
{[%clk 0:00:04.7]} 29... Rxd1+ {[%clk 0:01:19.9]} 30. Rxd1 {[%clk 0:00:05.6]}
30... Nxa2 {[%clk 0:01:18.2]} 31. Rd8 {[%clk 0:00:05.7]} 31... Kg7 {[%clk
0:01:13.2]} 32. Rc8 {[%clk 0:00:03.5]} 32... Nxb3 {[%clk 0:01:12.2]} 33. Rc7+
{[%clk 0:00:03.5]} 33... Kf6 {[%clk 0:01:11]} 34. Rxb7 {[%clk 0:00:03.8]} 34...
Rxc4 {[%clk 0:01:07.8]} 35. h4 {[%clk 0:00:03.8]} 35... a4 {[%clk 0:01:07.2]}
36. Bg5+ {[%clk 0:00:03.9]} 36... Ke5 {[%clk 0:01:06.7]} 37. Rf7 {[%clk
0:00:03.6]} 37... Bc5 {[%clk 0:01:05]} 38. Bf6+ {[%clk 0:00:03.9]} 38... Ke4
{[%clk 0:01:05.3]} 39. Kg2 {[%clk 0:00:02.1]} 39... Rc2 {[%clk 0:01:04.7]} 40.
Bg5 {[%clk 0:00:01.7]} 40... e5 {[%clk 0:01:03.8]} 41. Rf3 {[%clk 0:00:01.6]}
41... Nb4 {[%clk 0:01:02.8]} 42. Rf7 {[%clk 0:00:01.4]} 42... Nd3 {[%clk
0:01:02.7]} 43. Rd7 {[%clk 0:00:01.3]} 43... Rxf2+ {[%clk 0:01:02.2]} 0-1

[Event "*** Titled Tuesday Blitz"]
[Site "Chess.com"]
[Date "2020.04.14"]
[Round "2"]
[White "Eltarolo"]
[Black "jacky72"]
[Result "0-1"]
[WhiteElo "2331"]
[BlackElo "2691"]
[TimeControl "180+1"]
[EndTime "10:16:59 PDT"]
[Termination "jacky72 won by resignation"]

1. e4 {[%clk 0:03:00.9]} 1... e5 {[%clk 0:02:59.3]} 2. Nf3 {[%clk 0:03:01]} 2...
Nc6 {[%clk 0:03:00.2]} 3. Bb5 {[%clk 0:03:01.6]} 3... a6 {[%clk 0:03:00.5]} 4.
Ba4 {[%clk 0:03:02.2]} 4... d6 {[%clk 0:03:01.4]} 5. O-O {[%clk 0:03:00.1]} 5...
Bd7 {[%clk 0:03:01.7]} 6. c3 {[%clk 0:03:00.2]} 6... g6 {[%clk 0:03:02]} 7. d4
{[%clk 0:03:00.5]} 7... Bg7 {[%clk 0:03:02.6]} 8. h3 {[%clk 0:02:59.7]} 8... Nf6
{[%clk 0:03:02.9]} 9. Re1 {[%clk 0:02:59.6]} 9... O-O {[%clk 0:03:03.2]} 10.
Nbd2 {[%clk 0:02:55.2]} 10... Re8 {[%clk 0:03:03.1]} 11. dxe5 {[%clk 0:02:45.2]}
11... Nxe5 {[%clk 0:03:01.8]} 12. Nxe5 {[%clk 0:02:41.9]} 12... Rxe5 {[%clk
0:03:01.1]} 13. Bxd7 {[%clk 0:02:28.9]} 13... Qxd7 {[%clk 0:03:02]} 14. f3
{[%clk 0:02:15.6]} 14... Rae8 {[%clk 0:03:01.4]} 15. Nc4 {[%clk 0:02:15.7]}
15... R5e7 {[%clk 0:03:00.6]} 16. Bd2 {[%clk 0:02:05]} 16... d5 {[%clk
0:02:58.5]} 17. exd5 {[%clk 0:02:00.8]} 17... Qxd5 {[%clk 0:02:59.4]} 18. Rxe7
{[%clk 0:01:52.8]} 18... Rxe7 {[%clk 0:03:00.3]} 19. Ne3 {[%clk 0:01:11.5]}
19... Qd3 {[%clk 0:02:58.8]} 20. Nf1 {[%clk 0:01:05.1]} 20... h6 {[%clk
0:02:09.3]} 21. Bf4 {[%clk 0:00:57.2]} 21... Qb5 {[%clk 0:01:54.1]} 22. Qd8+
{[%clk 0:00:36.4]} 22... Re8 {[%clk 0:01:53.8]} 23. Qxc7 {[%clk 0:00:36.7]}
23... Qxb2 {[%clk 0:01:54.2]} 24. Rd1 {[%clk 0:00:31.9]} 24... Re2 {[%clk
0:01:46]} 25. Rd2 {[%clk 0:00:23.8]} 25... Rxd2 {[%clk 0:01:45.2]} 26. Nxd2
{[%clk 0:00:21.8]} 26... b5 {[%clk 0:01:38]} 27. c4 {[%clk 0:00:16.8]} 27...
bxc4 {[%clk 0:01:29.6]} 28. Qxc4 {[%clk 0:00:15]} 28... Nh5 {[%clk 0:01:28.1]}
29. Be3 {[%clk 0:00:10.8]} 29... a5 {[%clk 0:01:27.3]} 30. Ne4 {[%clk
0:00:10.2]} 30... Qb1+ {[%clk 0:01:19.4]} 31. Kh2 {[%clk 0:00:09.9]} 31... Qb8+
{[%clk 0:01:19.9]} 32. Kg1 {[%clk 0:00:09.2]} 32... Ng3 {[%clk 0:01:15.5]} 33.
Nxg3 {[%clk 0:00:08.2]} 33... Qxg3 {[%clk 0:01:16.4]} 34. Qc5 {[%clk 0:00:06.4]}
34... a4 {[%clk 0:01:07.1]} 35. Bf2 {[%clk 0:00:05.8]} 35... Qf4 {[%clk
0:01:06.8]} 36. a3 {[%clk 0:00:04.2]} 36... Bf8 {[%clk 0:01:05.4]} 37. Qc2
{[%clk 0:00:01.4]} 37... Bxa3 {[%clk 0:01:03.8]} 38. Kh1 {[%clk 0:00:01.8]}
38... Qc1+ {[%clk 0:01:02.3]} 39. Qxc1 {[%clk 0:00:02.1]} 39... Bxc1 {[%clk
0:01:03.1]} 40. Bd4 {[%clk 0:00:02.6]} 40... a3 {[%clk 0:01:03]} 41. Kg1 {[%clk
0:00:03.2]} 41... Bb2 {[%clk 0:01:03.3]} 42. Be3 {[%clk 0:00:03.6]} 42... a2
{[%clk 0:01:03.2]} 43. Bxh6 {[%clk 0:00:04.5]} 43... a1=Q+ {[%clk 0:01:04.1]}
44. Kh2 {[%clk 0:00:05.4]} 44... Be5+ {[%clk 0:01:03.8]} 0-1

[Event "*** Titled Tuesday Blitz"]
[Site "Chess.com"]
[Date "2020.04.14"]
[Round "2"]
[White "Skatchkov_V"]
[Black "Misticpikachu"]
[Result "1-0"]
[WhiteElo "2546"]
[BlackElo "2288"]
[TimeControl "180+1"]
[EndTime "10:17:00 PDT"]
[Termination "Skatchkov_V won on time"]

1. d4 {[%clk 0:03:00]} 1... d5 {[%clk 0:02:59.7]} 2. c4 {[%clk 0:03:00.3]} 2...
e6 {[%clk 0:03:00.1]} 3. Nf3 {[%clk 0:03:00.8]} 3... Nf6 {[%clk 0:03:00.7]} 4.
g3 {[%clk 0:03:01.4]} 4... Be7 {[%clk 0:03:01.1]} 5. Bg2 {[%clk 0:03:02.1]} 5...
O-O {[%clk 0:03:01.7]} 6. O-O {[%clk 0:03:02.8]} 6... dxc4 {[%clk 0:03:02.2]} 7.
Nc3 {[%clk 0:02:57.9]} 7... c5 {[%clk 0:02:54.7]} 8. dxc5 {[%clk 0:02:54.8]}
8... Bxc5 {[%clk 0:02:52.9]} 9. Ne5 {[%clk 0:02:53.8]} 9... Nc6 {[%clk
0:02:47.3]} 10. Nxc4 {[%clk 0:02:48.9]} 10... Bd7 {[%clk 0:02:15.6]} 11. a3
{[%clk 0:02:47.9]} 11... a6 {[%clk 0:02:11.5]} 12. b4 {[%clk 0:02:46.1]} 12...
Ba7 {[%clk 0:01:41.8]} 13. Bb2 {[%clk 0:02:42.5]} 13... Rc8 {[%clk 0:01:40.1]}
14. Nd6 {[%clk 0:02:41.6]} 14... Rc7 {[%clk 0:01:31]} 15. Na4 {[%clk 0:02:24.5]}
15... Ne7 {[%clk 0:01:17.8]} 16. Nxb7 {[%clk 0:02:19.5]} 16... Bxa4 {[%clk
0:00:59.6]} 17. Qxd8 {[%clk 0:01:49.4]} 17... Rxd8 {[%clk 0:00:56.5]} 18. Nxd8
{[%clk 0:01:43.6]} 18... Ned5 {[%clk 0:00:51.4]} 19. Rac1 {[%clk 0:01:40]} 19...
Rd7 {[%clk 0:00:32.2]} 20. Nc6 {[%clk 0:01:29]} 20... Bb6 {[%clk 0:00:31]} 21.
Ne5 {[%clk 0:01:21.4]} 21... Rd8 {[%clk 0:00:29.9]} 22. Rfd1 {[%clk 0:01:21.4]}
22... Re8 {[%clk 0:00:19.1]} 23. Rd2 {[%clk 0:01:17.6]} 23... a5 {[%clk
0:00:14.9]} 24. e4 {[%clk 0:01:16.4]} 24... Ne7 {[%clk 0:00:11]} 25. Nc4 {[%clk
0:01:15.5]} 25... Bd8 {[%clk 0:00:07.9]} 26. Nxa5 {[%clk 0:01:14.8]} 26... h6
{[%clk 0:00:07.3]} 27. e5 {[%clk 0:01:11.2]} 27... Nfd5 {[%clk 0:00:06.6]} 28.
Nc4 {[%clk 0:01:11.5]} 28... Nf5 {[%clk 0:00:05.9]} 29. Nd6 {[%clk 0:01:09.6]}
29... Nxd6 {[%clk 0:00:04.2]} 30. exd6 {[%clk 0:01:10]} 30... Bg5 {[%clk
0:00:04.5]} 31. f4 {[%clk 0:01:09.5]} 31... Bd8 {[%clk 0:00:05.1]} 32. Bxd5
{[%clk 0:01:09.4]} 32... exd5 {[%clk 0:00:06]} 33. Bd4 {[%clk 0:01:07.3]} 33...
Re6 {[%clk 0:00:02.1]} 34. Rc8 {[%clk 0:01:02.8]} 34... Rxd6 {[%clk 0:00:01.5]}
35. Bc5 {[%clk 0:01:02.6]} 35... Rd7 {[%clk 0:00:01]} 36. Bb6 {[%clk 0:01:02.6]}
1-0